[Event "Klatovy Open-B 2024"]
[Site "Klatovy"]
[Date "2024.07.01"]
[Round "3.14"]
[White "Mojzisova, Barbora"]
[Black "Vavrinkova, Jitka"]
[Result "1/2-1/2"]
[ECO "C01"]
[WhiteElo "1535"]
[BlackElo "1707"]
[Annotator "NA RC"]
[PlyCount "98"]
[EventDate "2024.06.21"]
[EventType "swiss"]
[EventCountry "CZE"]
[SourceTitle "playchess.com"]
[Source "ChessBase"]
[SourceQuality "1"]
[TimeControl "40/7200:0"]

1. e4 {[%emt 0:00:00]} e6 {[%emt 0:00:00]} 2. d4 {[%emt 0:00:00]} d5 {[%emt 0:00:00]} 3. exd5 {[%emt 0:00:00]} exd5 {[%emt 0:00:00]} 4. Nc3 {[%emt 0:01:26]} c6 {[%emt 0:00:00]} 5. Bf4 {[%emt 0:02:20]} Nf6 {[%emt 0:06:07]} 6. Bd3 {[%emt 0:01:45]} Bd6 {[%emt 0:01:35]} 7. Bg3 {[%emt 0:04:00]} O-O {[%emt 0:00:18]} 8. Nge2 {[%emt 0:01:55]} Bg4 {[%emt 0:01:55]} 9. f3 {[%emt 0:01:31]} Be6 {[%emt 0:02:13]} 10. Qd2 {[%emt 0:02:38]} a6 {[%emt 0:07:51]} 11. Nd1 {[%emt 0:11:07]} c5 {[%emt 0:13:30]} 12. c3 {[%emt 0:04:13]} Nc6 {[%emt 0:03:54]} 13. dxc5 {[%emt 0:03:02]} Bxc5 {[%emt 0:00:22]} 14. Nf2 {[%emt 0:01:12]} Re8 {[%emt 0:02:08]} 15. O-O {[%emt 0:03:14]} Qb6 {[%emt 0:03:56]} 16. Kh1 {[%emt 0:01:56]} Be3 {[%emt 0:06:46]} 17. Qc2 {[%emt 0:00:40]} h6 {[%emt 0:00:00]} 18. Nd1 {[%emt 0:01:48]} Bc5 {[%emt 0:00:50]} 19. Bf2 {[%emt 0:02:26]} Bxf2 {[%emt 0:02:25]} 20. Nxf2 {[%emt 0:00:01]} Rac8 {[%emt 0:00:06]} 21. a3 {[%emt 0:02:56]} Ne5 {[%emt 0:01:57]} 22. Nf4 {[%emt 0:01:39]} Nxd3 {[%emt 0:01:29]} 23. N2xd3 {[%emt 0:01:32]} Bf5 {[%emt 0:00:41]} 24. Qd2 {[%emt 0:00:48]} d4 {[%emt 0:05:11]} 25. Nb4 {[%emt 0:03:15]} dxc3 {[%emt 0:01:09]} 26. bxc3 {[%emt 0:00:00]} Red8 {[%emt 0:03:26]} 27. Nfd5 {[%emt 0:02:31]} Nxd5 {[%emt 0:00:48]} 28. Nxd5 {[%emt 0:00:00]} Qc5 {[%emt 0:07:13]} 29. Rad1 {[%emt 0:04:08]} Kf8 {[%emt 0:02:02]} 30. Qa2 {[%emt 0:04:57]} Be6 {[%emt 0:00:22]} 31. c4 {[%emt 0:00:29]} b5 {[%emt 0:01:00]} 32. Rfe1 {[%emt 0:01:21]} Qxc4 {[%emt 0:01:48]} 33. Qxc4 {[%emt 0:00:00]} bxc4 {[%emt 0:00:42]} 34. Ne3 {[%emt 0:00:00]} Rxd1 {[%emt 0:00:01]} 35. Rxd1 {[%emt 0:00:00]} Ke7 {[%emt 0:00:13]} 36. Kg1 {[%emt 0:00:00]} c3 {[%emt 0:06:02]} 37. Rc1 {[%emt 0:00:01]} Rc5 {[%emt 0:03:40]} 38. Kf2 {[%emt 0:00:11]} Bb3 {[%emt 0:00:34]} 39. Kg3 {[%emt 0:01:58]} a5 {[%emt 0:00:41]} 40. Kf4 {[%emt 0:00:36]} c2 {[%emt 0:02:20]} 41. Ke4 {[%emt 2:01:10]} Rc6 {[%emt 2:02:03]} 42. Kd3 {[%emt 0:01:25]} Rd6+ {[%emt 0:00:18]} 43. Ke2 {[%emt 0:02:08]} Re6 {[%emt 0:02:09]} 44. Kd3 {[%emt 0:00:22]} Rd6+ {[%emt 0:00:19]} 45. Ke2 {[%emt 0:00:00]} Rd1 {[%emt 0:02:57]} 46. Nxd1 {[%emt 0:00:18]} cxd1=Q+ {[%emt 0:00:00]} 47. Rxd1 {[%emt 0:00:00]} Bxd1+ {[%emt 0:00:00]} 48. Kxd1 {[%emt 0:00:00]} Kd6 {[%emt 0:00:00]} 49. Kd2 {[%emt 0:00:00]} a4 {[%emt 0:00:00]} 1/2-1/2

[Event "Klatovy Open-B 2024"]
[Site "Klatovy"]
[Date "2024.07.02"]
[Round "4.1"]
[White "Kaderabek, Jiri"]
[Black "Koupil, Stepan"]
[Result "1-0"]
[ECO "E06"]
[WhiteElo "1984"]
[BlackElo "1685"]
[Annotator "NA RC"]
[PlyCount "69"]
[EventDate "2024.06.21"]
[EventType "swiss"]
[EventCountry "CZE"]
[SourceTitle "playchess.com"]
[Source "ChessBase"]
[SourceQuality "1"]
[TimeControl "40/7200:0"]

1. Nf3 {[%emt 0:05:01]} d5 {[%emt 0:00:00]} 2. c4 {[%emt 0:00:00]} e6 {[%emt 0:00:00]} 3. g3 {[%emt 0:00:00]} Nf6 {[%emt 0:00:00]} 4. Bg2 {[%emt 0:00:00]} Be7 {[%emt 0:00:00]} 5. O-O {[%emt 0:00:00]} O-O {[%emt 0:00:00]} 6. Qc2 {[%emt 0:01:03]} c5 {[%emt 0:00:00]} 7. d4 {[%emt 0:01:57]} cxd4 {[%emt 0:05:09]} 8. Nxd4 {[%emt 0:02:32]} e5 {[%emt 0:02:00]} 9. Nf5 {[%emt 0:03:09]} Nc6 {[%emt 0:07:01]} 10. Nxe7+ {[%emt 0:03:17]} Nxe7 {[%emt 0:00:00]} 11. Bg5 {[%emt 0:01:01]} Bf5 {[%emt 0:04:47]} 12. Qa4 {[%emt 0:07:39]} Nd7 {[%emt 0:10:04]} 13. Bxe7 {[%emt 0:03:11]} Qxe7 {[%emt 0:00:00]} 14. cxd5 {[%emt 0:00:00]} Nb6 {[%emt 0:00:00]} 15. Qa3 {[%emt 0:01:51]} Qd7 {[%emt 0:03:24]} 16. Rd1 {[%emt 0:02:26]} Bc2 {[%emt 0:04:22]} 17. Rc1 {[%emt 0:03:07]} Rfc8 {[%emt 0:00:12]} 18. Nc3 {[%emt 0:04:49]} Nc4 {[%emt 0:13:29]} 19. Qb4 {[%emt 0:00:00]} a5 {[%emt 0:00:19]} 20. Qb5 {[%emt 0:00:00]} Qxb5 {[%emt 0:00:00]} 21. Nxb5 {[%emt 0:00:00]} Bf5 {[%emt 0:00:00]} 22. b3 {[%emt 0:02:00]} Nb6 {[%emt 0:00:00]} 23. Nd6 {[%emt 0:01:34]} Rxc1+ {[%emt 0:00:00]} 24. Rxc1 {[%emt 0:00:00]} Bg4 {[%emt 0:04:45]} 25. Nxb7 {[%emt 0:01:31]} Bxe2 {[%emt 0:01:21]} 26. a4 {[%emt 0:01:28]} Kf8 {[%emt 0:03:07]} 27. d6 {[%emt 0:02:43]} Bg4 {[%emt 0:02:58]} 28. Rc5 {[%emt 0:04:11]} Rc8 {[%emt 0:01:13]} 29. Rxc8+ {[%emt 0:01:20]} Nxc8 {[%emt 0:00:00]} 30. Bc6 {[%emt 0:00:39]} Na7 {[%emt 0:00:14]} 31. Bd5 {[%emt 0:02:21]} Ke8 {[%emt 0:00:46]} 32. Nxa5 {[%emt 0:00:00]} f6 {[%emt 0:00:00]} 33. f3 {[%emt 0:00:46]} Bc8 {[%emt 0:01:09]} 34. b4 {[%emt 0:01:00]} Kd7 {[%emt 0:00:00]} 35. b5 {[%emt 0:02:36]} 1-0

[Event "Klatovy Open-B 2024"]
[Site "Klatovy"]
[Date "2024.07.02"]
[Round "4.2"]
[White "Slansky, Jachym"]
[Black "Chmelik, Ladislav"]
[Result "1-0"]
[ECO "B01"]
[WhiteElo "1665"]
[BlackElo "1795"]
[Annotator "NA RC"]
[PlyCount "39"]
[EventDate "2024.06.21"]
[EventType "swiss"]
[EventCountry "CZE"]
[SourceTitle "playchess.com"]
[Source "ChessBase"]
[SourceQuality "1"]
[TimeControl "40/7200:0"]

1. e4 {[%emt 0:00:00]} d5 {[%emt 0:00:00]} 2. exd5 {[%emt 0:00:00]} Qxd5 {[%emt 0:00:00]} 3. Nf3 {[%emt 0:00:00]} e5 {[%emt 0:04:53]} 4. Nc3 {[%emt 0:06:28]} Qe6 {[%emt 0:00:00]} 5. b3 {[%emt 0:01:29]} Bd6 {[%emt 0:05:01]} 6. Bc4 {[%emt 0:01:54]} Qe7 {[%emt 0:00:00]} 7. Nd5 {[%emt 0:02:28]} Qd8 {[%emt 0:00:00]} 8. Nxe5 {[%emt 0:26:45]} Be6 {[%emt 0:35:08]} 9. Qe2 {[%emt 0:29:26]} Qg5 {[%emt 0:15:49]} 10. f4 {[%emt 0:04:59]} Qh4+ {[%emt 0:01:38]} 11. g3 {[%emt 0:04:16]} Qd8 {[%emt 0:01:28]} 12. f5 {[%emt 0:04:51]} Qg5 {[%emt 0:03:15]} 13. fxe6 {[%emt 0:15:29]} Qxe5 {[%emt 0:02:37]} 14. Nxc7+ {[%emt 0:09:10]} Bxc7 {[%emt 0:00:00]} 15. exf7+ {[%emt 0:00:01]} Kd7 {[%emt 0:00:39]} 16. Qxe5 {[%emt 0:05:06]} Bxe5 {[%emt 0:00:00]} 17. f8=Q {[%emt 0:00:00]} Bxa1 {[%emt 0:00:00]} 18. d4 {[%emt 0:01:10]} Bxd4 {[%emt 0:00:00]} 19. Qf5+ {[%emt 0:00:40]} Kc7 {[%emt 0:00:05]} 20. Bf4+ {[%emt 0:00:13]} 1-0

[Event "Klatovy Open-B 2024"]
[Site "Klatovy"]
[Date "2024.07.02"]
[Round "4.3"]
[White "Vojta, Radek"]
[Black "Bukvaj, Jan"]
[Result "1-0"]
[ECO "B01"]
[WhiteElo "1693"]
[BlackElo "1652"]
[Annotator "NA RC"]
[PlyCount "113"]
[EventDate "2024.06.21"]
[EventType "swiss"]
[EventCountry "CZE"]
[SourceTitle "playchess.com"]
[Source "ChessBase"]
[SourceQuality "1"]
[TimeControl "40/7200:0"]

1. e4 {[%emt 0:00:00]} d5 {[%emt 0:00:00]} 2. exd5 {[%emt 0:00:00]} Nf6 {[%emt 0:00:00]} 3. Nf3 {[%emt 0:00:00]} Nxd5 {[%emt 0:00:00]} 4. d4 {[%emt 0:00:00]} Bf5 {[%emt 0:06:45]} 5. a3 {[%emt 0:05:54]} e6 {[%emt 0:03:41]} 6. c4 {[%emt 0:00:00]} Nf6 {[%emt 0:00:36]} 7. Nc3 {[%emt 0:01:40]} Be7 {[%emt 0:10:50]} 8. Be2 {[%emt 0:00:46]} O-O {[%emt 0:02:09]} 9. O-O {[%emt 0:02:04]} Nbd7 {[%emt 0:20:05]} 10. Be3 {[%emt 0:08:59]} Nb6 {[%emt 0:05:54]} 11. Ne5 {[%emt 0:04:57]} Ne4 {[%emt 1:10:00]} 12. Nxe4 {[%emt 0:08:40]} Bxe4 {[%emt 0:00:00]} 13. Rc1 {[%emt 0:00:00]} Nd7 {[%emt 0:00:00]} 14. f4 {[%emt 0:09:18]} Nxe5 {[%emt 0:00:00]} 15. fxe5 {[%emt 0:00:03]} Bg5 {[%emt 0:00:00]} 16. Qd2 {[%emt 0:10:11]} Bxe3+ {[%emt 0:00:00]} 17. Qxe3 {[%emt 0:00:00]} Bg6 {[%emt 0:00:00]} 18. b4 {[%emt 0:04:59]} Qe7 {[%emt 0:00:00]} 19. d5 {[%emt 0:11:04]} exd5 {[%emt 0:00:00]} 20. cxd5 {[%emt 0:00:00]} Rfe8 {[%emt 0:00:00]} 21. e6 {[%emt 0:01:50]} Kh8 {[%emt 0:00:00]} 22. Bg4 {[%emt 0:01:06]} h6 {[%emt 0:00:00]} 23. Qc5 {[%emt 0:07:00]} fxe6 {[%emt 0:00:00]} 24. dxe6 {[%emt 0:01:35]} Qxc5+ {[%emt 0:00:00]} 25. Rxc5 {[%emt 0:00:00]} Re7 {[%emt 0:00:00]} 26. Rd5 {[%emt 0:00:08]} Be8 {[%emt 0:00:00]} 27. Rfd1 {[%emt 0:07:48]} Bc6 {[%emt 0:00:00]} 28. Rd8+ {[%emt 0:00:55]} Re8 {[%emt 0:00:00]} 29. Rxa8 {[%emt 0:00:00]} Rxa8 {[%emt 0:00:00]} 30. e7 {[%emt 0:00:00]} Re8 {[%emt 0:00:00]} 31. Re1 {[%emt 0:05:35]} g6 {[%emt 0:00:00]} 32. Bd1 {[%emt 0:02:31]} Kg7 {[%emt 0:00:00]} 33. Bb3 {[%emt 0:00:00]} Bd7 {[%emt 0:00:00]} 34. Rc1 {[%emt 0:00:37]} c6 {[%emt 0:00:00]} 35. b5 {[%emt 0:00:20]} Rxe7 {[%emt 0:00:00]} 36. bxc6 {[%emt 0:00:00]} Bxc6 {[%emt 0:00:00]} 37. Rc3 {[%emt 0:00:58]} Re2 {[%emt 0:00:00]} 38. Rg3 {[%emt 0:00:00]} g5 {[%emt 0:00:00]} 39. h4 {[%emt 0:00:35]} Kg6 {[%emt 0:00:00]} 40. Bc4 {[%emt 0:00:08]} Rd2 {[%emt 0:00:00]} 41. Bd3+ {[%emt 1:59:38]} Kh5 {[%emt 1:47:16]} 42. Bf5 {[%emt 0:00:33]} Rd4 {[%emt 0:00:58]} 43. hxg5 {[%emt 0:02:00]} hxg5 {[%emt 0:00:00]} 44. Rh3+ {[%emt 0:00:10]} Rh4 {[%emt 0:00:00]} 45. g4+ {[%emt 0:00:00]} Kh6 {[%emt 0:00:00]} 46. Re3 {[%emt 0:00:48]} Rh1+ {[%emt 0:00:00]} 47. Kf2 {[%emt 0:00:00]} Rh2+ {[%emt 0:00:00]} 48. Kg3 {[%emt 0:00:55]} Rg2+ {[%emt 0:00:00]} 49. Kh3 {[%emt 0:00:00]} Ra2 {[%emt 0:00:14]} 50. Re7 {[%emt 0:00:00]} Rxa3+ {[%emt 0:00:00]} 51. Kh2 {[%emt 0:00:00]} Ra2+ {[%emt 0:00:00]} 52. Kg3 {[%emt 0:00:00]} Ra3+ {[%emt 0:00:00]} 53. Kf2 {[%emt 0:00:00]} Ra2+ {[%emt 0:00:00]} 54. Ke3 {[%emt 0:00:00]} Ra3+ {[%emt 0:00:00]} 55. Kd2 {[%emt 0:00:00]} Ra2+ {[%emt 0:00:00]} 56. Kc3 {[%emt 0:00:00]} Ra3+ {[%emt 0:00:00]} 57. Kb2 {[%emt 0:00:00]} 1-0

[Event "Klatovy Open-B 2024"]
[Site "Klatovy"]
[Date "2024.07.02"]
[Round "4.4"]
[White "Kroulik, Stepan"]
[Black "Koper, Stefan"]
[Result "1/2-1/2"]
[ECO "B06"]
[WhiteElo "1688"]
[BlackElo "1845"]
[Annotator "NA RC"]
[PlyCount "66"]
[EventDate "2024.06.21"]
[EventType "swiss"]
[EventCountry "CZE"]
[SourceTitle "playchess.com"]
[Source "ChessBase"]
[SourceQuality "1"]
[TimeControl "40/7200:0"]

1. e4 {[%emt 0:00:00]} d6 {[%emt 0:07:22]} 2. d4 {[%emt 0:00:00]} g6 {[%emt 0:00:00]} 3. Be3 {[%emt 0:00:00]} Bg7 {[%emt 0:00:00]} 4. Nf3 {[%emt 0:00:00]} Bg4 {[%emt 0:00:00]} 5. h3 {[%emt 0:00:00]} Bxf3 {[%emt 0:00:00]} 6. Qxf3 {[%emt 0:00:00]} e6 {[%emt 0:01:26]} 7. Bd3 {[%emt 0:00:00]} c6 {[%emt 0:00:48]} 8. c3 {[%emt 0:00:00]} Ne7 {[%emt 0:00:06]} 9. Nd2 {[%emt 0:00:00]} d5 {[%emt 0:00:00]} 10. e5 {[%emt 0:01:21]} a5 {[%emt 0:01:07]} 11. h4 {[%emt 0:01:08]} h5 {[%emt 0:00:00]} 12. a4 {[%emt 0:00:30]} Nd7 {[%emt 0:00:08]} 13. c4 {[%emt 0:03:20]} Qb6 {[%emt 0:05:54]} 14. b3 {[%emt 0:01:01]} c5 {[%emt 0:03:12]} 15. dxc5 {[%emt 0:01:52]} Nxc5 {[%emt 0:00:00]} 16. Bxc5 {[%emt 0:00:44]} Qxc5 {[%emt 0:00:00]} 17. Qg3 {[%emt 0:03:43]} Qd4 {[%emt 0:00:00]} 18. O-O {[%emt 0:04:26]} Bxe5 {[%emt 0:03:59]} 19. Qh3 {[%emt 0:00:20]} Qg4 {[%emt 0:00:19]} 20. Rae1 {[%emt 0:02:07]} Qxh3 {[%emt 0:00:04]} 21. gxh3 {[%emt 0:00:00]} Bc3 {[%emt 0:00:03]} 22. Re2 {[%emt 0:00:00]} Bxd2 {[%emt 0:00:00]} 23. Rxd2 {[%emt 0:00:00]} dxc4 {[%emt 0:00:00]} 24. Bxc4 {[%emt 0:00:39]} Nf5 {[%emt 0:00:00]} 25. Bb5+ {[%emt 0:00:14]} Kf8 {[%emt 0:00:00]} 26. Rd7 {[%emt 0:00:56]} Rb8 {[%emt 0:00:00]} 27. Rc1 {[%emt 0:00:42]} Kg7 {[%emt 0:02:39]} 28. Rcc7 {[%emt 0:00:17]} Rhf8 {[%emt 0:00:00]} 29. Bc4 {[%emt 0:01:29]} Kf6 {[%emt 0:00:00]} 30. Rxb7 {[%emt 0:00:45]} Rxb7 {[%emt 0:00:00]} 31. Rxb7 {[%emt 0:00:00]} Rc8 {[%emt 0:00:00]} 32. Ra7 {[%emt 0:00:20]} Rc5 {[%emt 0:00:00]} 33. Bb5 {[%emt 0:00:39]} Rc3 {[%emt 0:00:39]} 1/2-1/2

[Event "Klatovy Open-B 2024"]
[Site "Klatovy"]
[Date "2024.07.02"]
[Round "4.5"]
[White "Beran, Jakub"]
[Black "Svejdar, Petr"]
[Result "1/2-1/2"]
[ECO "C55"]
[WhiteElo "1791"]
[BlackElo "1695"]
[Annotator "NA RC"]
[PlyCount "26"]
[EventDate "2024.06.21"]
[EventType "swiss"]
[EventCountry "CZE"]
[SourceTitle "playchess.com"]
[Source "ChessBase"]
[SourceQuality "1"]
[TimeControl "40/7200:0"]

1. e4 {[%emt 0:00:00]} e5 {[%emt 0:00:00]} 2. Bc4 {[%emt 0:00:00]} Nf6 {[%emt 0:00:00]} 3. Nc3 {[%emt 0:00:00]} Nc6 {[%emt 0:00:00]} 4. Nf3 {[%emt 0:00:00]} Bb4 {[%emt 0:00:00]} 5. d3 {[%emt 0:00:00]} d6 {[%emt 0:00:00]} 6. h3 {[%emt 0:00:00]} O-O {[%emt 0:00:00]} 7. O-O {[%emt 0:00:00]} h6 {[%emt 0:00:00]} 8. Bd2 {[%emt 0:00:00]} Be6 {[%emt 0:00:00]} 9. Bxe6 {[%emt 0:00:00]} fxe6 {[%emt 0:00:00]} 10. a3 {[%emt 0:00:00]} Ba5 {[%emt 0:00:00]} 11. Ne2 {[%emt 0:00:00]} Bxd2 {[%emt 0:00:00]} 12. Qxd2 {[%emt 0:00:00]} d5 {[%emt 0:00:00]} 13. Ng3 {[%emt 0:00:00]} d4 {[%emt 0:00:00]} 1/2-1/2

[Event "Klatovy Open-B 2024"]
[Site "Klatovy"]
[Date "2024.07.02"]
[Round "4.6"]
[White "Spackova, Martina"]
[Black "Janouskova, Eliska"]
[Result "0-1"]
[ECO "A30"]
[WhiteElo "1777"]
[BlackElo "1670"]
[Annotator "NA RC"]
[PlyCount "64"]
[EventDate "2024.06.21"]
[EventType "swiss"]
[EventCountry "CZE"]
[SourceTitle "playchess.com"]
[Source "ChessBase"]
[SourceQuality "1"]
[TimeControl "40/7200:0"]

1. g3 {[%emt 0:12:37]} c5 {[%emt 0:02:52]} 2. Bg2 {[%emt 0:00:01]} Nf6 {[%emt 0:00:10]} 3. c4 {[%emt 0:00:51]} e6 {[%emt 0:01:28]} 4. e4 {[%emt 0:02:34]} d6 {[%emt 0:00:40]} 5. Nc3 {[%emt 0:01:11]} a6 {[%emt 0:01:43]} 6. Nge2 {[%emt 0:01:29]} Be7 {[%emt 0:03:08]} 7. O-O {[%emt 0:01:42]} O-O {[%emt 0:02:28]} 8. d4 {[%emt 0:01:17]} cxd4 {[%emt 0:02:35]} 9. Nxd4 {[%emt 0:00:00]} Qc7 {[%emt 0:02:50]} 10. Qe2 {[%emt 0:05:10]} Nc6 {[%emt 0:06:06]} 11. Nxc6 {[%emt 0:02:26]} bxc6 {[%emt 0:00:49]} 12. f4 {[%emt 0:01:01]} Nd7 {[%emt 0:06:06]} 13. g4 {[%emt 0:07:56]} Bb7 {[%emt 0:02:41]} 14. g5 {[%emt 0:04:29]} Nb6 {[%emt 0:14:47]} 15. f5 {[%emt 0:04:10]} exf5 {[%emt 0:01:36]} 16. exf5 {[%emt 0:00:15]} Rfe8 {[%emt 0:01:10]} 17. Qg4 {[%emt 0:04:02]} Qd7 {[%emt 0:02:09]} 18. Qh4 {[%emt 0:05:12]} d5 {[%emt 0:02:33]} 19. f6 {[%emt 0:06:51]} Bc5+ {[%emt 0:00:13]} 20. Kh1 {[%emt 0:01:50]} Nxc4 {[%emt 0:01:35]} 21. fxg7 {[%emt 0:00:27]} Be3 {[%emt 0:04:42]} 22. Bh3 {[%emt 0:01:50]} Re6 {[%emt 0:05:15]} 23. Bf5 {[%emt 0:02:30]} Kxg7 {[%emt 0:00:00]} 24. Qxh7+ {[%emt 0:00:59]} Kf8 {[%emt 0:00:00]} 25. Qh8+ {[%emt 0:04:03]} Ke7 {[%emt 0:00:00]} 26. Qf6+ {[%emt 0:00:00]} Rxf6 {[%emt 0:00:00]} 27. gxf6+ {[%emt 0:00:00]} Kd8 {[%emt 0:00:00]} 28. Bxd7 {[%emt 0:00:00]} Kxd7 {[%emt 0:00:00]} 29. Bxe3 {[%emt 0:00:10]} Nxe3 {[%emt 0:00:00]} 30. Rfe1 {[%emt 0:01:18]} d4 {[%emt 0:00:00]} 31. Nd1 {[%emt 0:00:00]} c5+ {[%emt 0:00:28]} 32. Kg1 {[%emt 0:00:00]} Rg8+ {[%emt 0:00:00]} 0-1

[Event "Klatovy Open-B 2024"]
[Site "Klatovy"]
[Date "2024.07.02"]
[Round "4.8"]
[White "Rezac, Jindrich"]
[Black "Babicky, Jan"]
[Result "1/2-1/2"]
[ECO "D06"]
[WhiteElo "1875"]
[BlackElo "1542"]
[Annotator "NA RC"]
[PlyCount "41"]
[EventDate "2024.06.21"]
[EventType "swiss"]
[EventCountry "CZE"]
[SourceTitle "playchess.com"]
[Source "ChessBase"]
[SourceQuality "1"]
[TimeControl "40/7200:0"]

1. d4 {[%emt 0:01:30]} d5 {[%emt 0:00:00]} 2. c4 {[%emt 0:00:09]} Nf6 {[%emt 0:00:00]} 3. Nc3 {[%emt 0:00:16]} Bf5 {[%emt 0:00:00]} 4. e3 {[%emt 0:05:32]} e6 {[%emt 0:00:32]} 5. Nf3 {[%emt 0:01:24]} c5 {[%emt 0:01:41]} 6. cxd5 {[%emt 0:09:25]} exd5 {[%emt 0:01:34]} 7. Bb5+ {[%emt 0:00:53]} Nc6 {[%emt 0:00:04]} 8. O-O {[%emt 0:06:16]} Qb6 {[%emt 0:02:50]} 9. Qe2 {[%emt 0:10:51]} c4 {[%emt 0:04:02]} 10. Nxd5 {[%emt 0:22:40]} Nxd5 {[%emt 0:00:00]} 11. Bxc6+ {[%emt 0:00:08]} Qxc6 {[%emt 0:00:00]} 12. e4 {[%emt 0:00:07]} Bxe4 {[%emt 0:10:24]} 13. Qxe4+ {[%emt 0:01:39]} Qe6 {[%emt 0:00:00]} 14. Qxe6+ {[%emt 0:08:30]} fxe6 {[%emt 0:01:40]} 15. Re1 {[%emt 0:00:00]} O-O-O {[%emt 0:11:53]} 16. Rxe6 {[%emt 0:01:32]} Bd6 {[%emt 0:01:19]} 17. Bg5 {[%emt 0:11:07]} Kd7 {[%emt 0:02:43]} 18. Rxd6+ {[%emt 0:06:50]} Kxd6 {[%emt 0:00:00]} 19. Bxd8 {[%emt 0:00:00]} Rxd8 {[%emt 0:00:00]} 20. Ne5 {[%emt 0:00:00]} Rc8 {[%emt 0:00:09]} 21. Kf1 {[%emt 0:04:24]} 1/2-1/2

[Event "Klatovy Open-B 2024"]
[Site "Klatovy"]
[Date "2024.07.02"]
[Round "4.9"]
[White "Lener, Jaroslav"]
[Black "Bukvaj, Martin"]
[Result "0-1"]
[ECO "A24"]
[WhiteElo "1870"]
[BlackElo "1687"]
[Annotator "NA COMBH RC"]
[PlyCount "106"]
[EventDate "2024.06.21"]
[EventType "swiss"]
[EventCountry "CZE"]
[SourceTitle "playchess.com"]
[Source "ChessBase"]
[SourceQuality "1"]
[TimeControl "40/7200:0"]

1. Nf3 {[%emt 0:00:00]} Nf6 {[%emt 0:00:00]} 2. c4 {[%emt 0:00:00]} g6 {[%emt 0:00:06]} 3. Nc3 {[%emt 0:00:00]} Bg7 {[%emt 0:00:07]} 4. g3 {[%emt 0:00:00]} O-O {[%emt 0:00:53]} 5. Bg2 {[%emt 0:00:00]} d6 {[%emt 0:00:01]} 6. d3 {[%emt 0:00:00]} Nbd7 {[%emt 0:02:16]} 7. O-O {[%emt 0:00:00]} e5 {[%emt 0:01:36]} 8. Bg5 {[%emt 0:00:00] A24: English Opening vs King's Indian: Lines without ...Nc6.} h6 {[%emt 0:06:47]} 9. Bd2 {[%emt 0:00:45]} Re8 {[%emt 0:02:34]} 10. Ne1 {[%emt 0:01:51]} a5 {[%emt 0:14:58]} 11. a3 {[%emt 0:01:04]} c6 {[%emt 0:01:01]} 12. Rb1 {[%emt 0:03:40]} Nf8 {[%emt 0:10:22]} 13. Nc2 {[%emt 0:00:55]} Ne6 {[%emt 0:10:15]} 14. b4 {[%emt 0:02:44]} axb4 {[%emt 0:01:59]} 15. axb4 {[%emt 0:00:00]} Nd4 {[%emt 0:08:20]} 16. Qc1 {[%emt 0:16:43]} Kh7 {[%emt 0:05:37]} 17. e3 {[%emt 0:10:14]} Nxc2 {[%emt 0:03:16]} 18. Qxc2 {[%emt 0:02:12]} d5 {[%emt 0:05:13]} 19. c5 {[%emt 0:11:51]} d4 {[%emt 0:08:09]} 20. Na4 {[%emt 0:29:13]} dxe3 {[%emt 0:08:07]} 21. fxe3 {[%emt 0:03:32]} Bf5 {[%emt 0:04:18]} 22. Nb2 {[%emt 0:01:20]} Qd7 {[%emt 0:05:55]} 23. Bc3 {[%emt 0:05:30]} Bh3 {[%emt 0:06:48]} 24. Ra1 {[%emt 0:05:14]} Bxg2 {[%emt 0:00:56]} 25. Kxg2 {[%emt 0:00:00]} Nd5 {[%emt 0:00:00]} 26. Nc4 {[%emt 0:01:17]} Rxa1 {[%emt 0:04:05]} 27. Rxa1 {[%emt 0:00:19]} Qg4 {[%emt 0:00:47]} 28. e4 {[%emt 0:04:27]} Nf4+ {[%emt 0:00:45]} 29. Kg1 {[%emt 0:09:08]} Nh3+ {[%emt 0:01:23]} (29... Qe2 $17 30. Rc1 Nh3+ (30... Qxd3 $2 {too greedy.} 31. Qxd3 Nxd3 32. Rd1 $18) 31. Kh1 Qf3+ 32. Qg2 Nf2+ (32... Qxd3 33. Nd6 $11) 33. Kg1 Qxd3 (33... Qxg2+ $2 34. Kxg2 Ng4 35. h3 $18)) 30. Kf1 $2 {[%emt 0:01:55]} (30. Kg2 $11 {and White is okay.}) 30... Qf3+ {[%emt 0:00:51]} 31. Ke1 {[%emt 0:00:00]} Qh1+ {[%emt 0:00:00]} 32. Kd2 {[%emt 0:00:00]} Qxh2+ {[%emt 0:00:00]} 33. Kc1 {[%emt 0:00:00]} Qxg3 {[%emt 0:00:00]} 34. Kb2 {[%emt 0:00:00]} Nf2 {[%emt 0:00:17]} 35. Nd6 {[%emt 0:02:32]} Nxd3+ {[%emt 0:00:13]} 36. Kb3 {[%emt 0:00:00]} Re7 {[%emt 0:00:15]} 37. Rf1 {[%emt 0:00:25]} Nf4 {[%emt 0:00:00]} 38. Qd1 {[%emt 0:01:38]} h5 {[%emt 0:00:34]} 39. Rg1 {[%emt 0:00:00]} Qd3 {[%emt 0:00:15]} 40. Qa1 {[%emt 0:00:49]} (40. Qxd3 $142 Nxd3 41. Ka4) 40... Ne2 $19 {[%emt 0:00:00]} 41. Rc1 {[%emt 2:00:04]} Nxc1+ {[%emt 1:59:45]} 42. Qxc1 {[%emt 0:00:00]} Qg3 {[%emt 0:00:07]} 43. Qf1 {[%emt 0:00:00]} Qf4 {[%emt 0:00:00]} 44. Qh3 {[%emt 0:00:00]} h4 {[%emt 0:00:00]} 45. Qh1 {[%emt 0:00:00]} Qg4 {[%emt 0:00:14]} 46. Qf1 {[%emt 0:00:03]} f6 {[%emt 0:00:00]} 47. Bd2 {[%emt 0:00:01]} h3 {[%emt 0:00:00]} 48. Qf2 {[%emt 0:00:00]} Rd7 {[%emt 0:00:05]} 49. Be3 {[%emt 0:00:00]} Kg8 {[%emt 0:00:04]} 50. Qa2 {[%emt 0:00:03]} Qd1+ {[%emt 0:00:00]} 51. Kc3+ {[%emt 0:00:00]} Kh7 {[%emt 0:00:00]} 52. Qh2 {[%emt 0:00:00]} Qf3 {[%emt 0:00:00]} 53. Qd2 {[%emt 0:00:00] Check Result:-#14} Bh6 {[%emt 0:00:00]} 0-1